bitfinex/quotes_SOLUSD_20241020
["timestamp","ask_amount","ask_price","bid_price","bid_amount"]
[1729463732205,4.8413,165.25,165.15,4.45766415]
[1729463732206,0.89174985,165.26,165.16,36.3283]
[1729463732521,0.89174985,165.26,165.21,4.842]
[1729463733234,4.8411,165.25,165.19,4.8426]
[1729463733726,0.89174985,165.26,165.16,20.0]
[1729463734028,5.73254985,165.26,165.19,16.9494]
[1729463734226,5.73254985,165.26,165.2,4.8425]
[1729463734806,5.73254985,165.26,165.19,12.1068]
[1729463735126,4.8411,165.25,165.19,16.9495]
[1729463736111,0.89174985,165.26,165.2,4.8424]
[1729463736112,5.73254985,165.26,165.2,4.8424]
[1729463737105,0.89174985,165.26,165.21,4.8422]
[1729463737305,0.89174985,165.26,165.22,4.8419]
[1729463738730,4.8406,165.27,165.22,4.8419]
[1729463738929,23.776884,165.27,165.2,4.47149511]
[1729463739143,23.776884,165.27,165.19,4.8428]
[1729463739144,4.8414,165.25,165.19,4.8428]
[1729463739345,5.73305732,165.25,165.19,4.8428]
[1729463739636,5.73305732,165.25,165.2,4.8424]
[1729463740328,0.89165732,165.25,165.16,4.47149511]
[1729463740536,15.0665,165.23,165.15,4.47149511]
[1729463740741,15.0665,165.23,165.14,4.47149511]
[1729463740742,6.2063,165.2,165.14,4.47149511]
[1729463741033,4.8429,165.19,165.14,4.8443]
[1729463741228,6.2063,165.2,165.13,12.1114]
[1729463741410,28.619784,165.19,165.13,12.1114]
[1729463741610,29.51173441,165.19,165.13,12.1114]
[1729463741810,29.51173441,165.19,165.13,16.9558]
[1729463741811,24.66883441,165.19,165.13,16.9558]
[1729463742033,4.8432,165.18,165.13,16.9558]
[1729463742230,29.51173441,165.19,165.13,16.9558]
[1729463742430,29.51173441,165.19,165.13,12.1114]
[1729463742431,4.8432,165.18,165.13,12.1114]
[1729463743026,4.8435,165.17,165.1,16.9593]
[1729463743228,24.66883441,165.19,165.09,4.47149511]
[1729463743431,4.8446,165.14,165.06,12.1164]
[1729463743634,4.8446,165.14,165.08,4.8461]
[1729463744528,4.8449,165.12,165.04,12.1182]
[1729463744731,30.137884,165.13,165.05,0.55734971]
[1729463744910,11.2056,165.13,165.07,4.8461]
[1729463745644,6.361,165.13,165.03,4.47149511]
[1729463746139,6.361,165.13,165.09,4.8458]
[1729463746357,4.8449,165.12,165.07,4.8464]
[1729463746520,11.2057,165.13,165.07,4.8464]
[1729463747242,11.2057,165.13,165.05,12.1175]
[1729463747243,11.2057,165.13,165.08,4.8461]
[1729463747461,6.361,165.13,165.1,4.8454]
[1729463747921,6.361,165.13,165.07,12.116]
[1729463748119,6.361,165.13,165.09,4.8458]
[1729463749235,6.361,165.13,165.12,4.8449]
[1729463749546,6.361,165.13,165.07,4.49347774]
[1729463749843,6.361,165.13,165.09,12.1146]
[1729463750047,6.361,165.13,165.11,4.8452]
[1729463750245,0.89218972,165.16,165.12,4.8449]
[1729463750627,0.89218972,165.16,165.13,0.55707969]
[1729463750942,0.89218972,165.16,165.13,4.8445]
[1729463751547,0.89218972,165.16,165.12,12.1121]
[1729463751747,0.89218972,165.16,165.09,4.49347774]
[1729463751748,23.776884,165.15,165.09,4.49347774]
[1729463751922,4.8447,165.13,165.09,4.49347774]
[1729463752124,4.8447,165.13,165.08,12.1149]
[1729463752328,28.621184,165.15,165.08,12.1149]
[1729463752543,28.621184,165.15,165.09,4.8457]
[1729463753349,28.621184,165.15,165.07,4.49347774]
[1729463753547,28.621184,165.15,165.09,16.96]
[1729463754029,28.621184,165.15,165.1,4.8454]
[1729463754231,23.776884,165.15,165.1,4.8452]
[1729463754648,0.89879828,165.16,165.12,4.8447]
[1729463755055,0.89879828,165.16,165.07,20.0]
[1729463755246,0.89879828,165.16,165.13,4.8444]
[1729463755428,0.89879828,165.16,165.12,12.1121]
[1729463755627,5.74279828,165.16,165.09,24.2292]
[1729463755851,0.89879828,165.16,165.12,4.8448]
[1729463757046,0.89879828,165.16,165.11,12.113]
[1729463757249,23.776884,165.15,165.11,16.9581]
[1729463757424,0.89879828,165.16,165.11,12.113]
[1729463757626,23.776884,165.16,165.12,4.8449]
[1729463757823,24.67567157,165.16,165.12,4.8449]
[1729463758133,24.67567157,165.16,165.11,16.9582]
[1729463758650,24.67567157,165.16,165.1,4.49742846]
[1729463758849,0.89878757,165.16,165.11,12.113]
[1729463759048,0.89878757,165.16,165.13,4.8446]
[1729463759842,6.5797,165.17,165.13,4.8446]
[1729463760049,6.5797,165.17,165.08,4.49742846]
[1729463760360,7.47848757,165.17,165.1,4.8455]
[1729463760548,7.47848757,165.17,165.14,4.8442]
[1729463760748,7.47848757,165.17,165.13,16.956]
[1729463760931,7.47848757,165.17,165.1,4.49742846]
[1729463760932,12.32198757,165.17,165.11,9.34252846]
[1729463761434,7.47848757,165.17,165.13,4.8446]
[1729463761629,7.47848757,165.17,165.12,0.55711343]
[1729463761852,23.776884,165.16,165.11,16.9579]
[1729463762958,23.776884,165.16,165.12,4.8448]
[1729463764268,24.67567157,165.16,165.12,4.8448]
[1729463765536,6.5797,165.17,165.08,4.49742846]
[1729463765739,6.5797,165.17,165.1,24.2275]
[1729463766061,6.5797,165.17,165.11,7.36452537]
[1729463766238,7.47876146,165.17,165.11,4.49742846]
[1729463766442,7.47876146,165.17,165.1,4.8453]
[1729463767060,4.8444,165.14,165.1,12.1138]
[1729463767356,4.8444,165.14,165.08,9.34352846]
[1729463767533,7.47876146,165.17,165.09,2.87074839]
[1729463767743,0.89891527,165.14,165.09,2.87074839]
[1729463768341,0.89891527,165.14,165.11,4.8451]
[1729463768745,0.89891527,165.14,165.08,4.49742846]
[1729463768949,0.89891527,165.14,165.13,4.8446]
[1729463770361,0.89906146,165.17,165.16,4.8437]
[1729463770540,6.4617,165.22,165.18,4.8429]
[1729463770864,6.4617,165.22,165.17,12.1081]
[1729463771235,7.36028246,165.22,165.18,4.8431]
[1729463771855,12.20248246,165.22,165.17,12.1081]
[1729463772055,4.8424,165.21,165.16,4.8436]
[1729463772267,4.8429,165.19,165.14,12.1107]
[1729463772565,5.74158031,165.19,165.14,12.1107]
[1729463772870,4.8433,165.18,165.14,12.1107]
[1729463773345,0.89868031,165.19,165.16,4.8434]
[1729463774466,5.74178031,165.19,165.14,4.8443]
[1729463774678,5.74178031,165.19,165.12,4.49742846]
[1729463774679,23.776884,165.16,165.12,4.49742846]
[1729463775466,23.776884,165.16,165.11,12.1124]
[1729463775675,29.51965511,165.16,165.11,12.1124]
[1729463775970,29.51965511,165.16,165.11,16.9575]
[1729463776350,24.67565511,165.16,165.13,4.8446]
[1729463776543,0.89877111,165.16,165.13,12.1113]
[1729463776868,0.89877111,165.16,165.13,16.9557]
[1729463777250,5.74247111,165.16,165.1,16.63315304]
[1729463777450,5.74247111,165.16,165.11,2.87758001]
[1729463778374,5.74247111,165.16,165.11,7.72268001]
[1729463778552,5.74247111,165.16,165.11,4.8451]
[1729463779380,5.74247111,165.16,165.12,2.87933026]
[1729463779879,0.89877111,165.16,165.12,2.87933026]
[1729463780045,0.89877111,165.16,165.12,4.8449]
[1729463780473,0.89877111,165.16,165.13,2.87924552]
[1729463780648,0.89877111,165.16,165.09,4.51945304]
[1729463780969,0.89877111,165.16,165.13,4.8443]
[1729463781655,0.89877111,165.16,165.11,16.9582]
[1729463781855,23.776884,165.15,165.12,2.87948659]
[1729463782055,23.776884,165.15,165.11,12.1131]
[1729463782056,0.89877111,165.16,165.11,12.1131]
[1729463782367,0.89877111,165.16,165.12,7.72477518]
[1729463782569,0.89877111,165.16,165.12,4.8449]
[1729463782870,4.8444,165.14,165.09,4.52747126]
[1729463783052,10.9219,165.13,165.1,2.8797817]
[1729463783247,10.9219,165.13,165.08,16.9612]
[1729463783447,10.9219,165.13,165.09,2.88100531]
[1729463783753,10.9219,165.13,165.09,4.52747126]
[1729463783754,11.83041419,165.13,165.09,4.52747126]
[1729463783949,28.621884,165.12,165.09,4.52747126]
[1729463784209,28.621884,165.12,165.08,16.64267126]
[1729463784355,23.776884,165.12,165.08,16.9612]
[1729463785061,6.98561419,165.13,165.11,4.8449]
[1729463785364,6.98561419,165.13,165.07,12.116]
[1729463785365,6.98561419,165.13,165.1,4.8455]
[1729463785976,6.98561419,165.13,165.08,4.53849493]
[1729463786282,6.98561419,165.13,165.12,4.8449]
[1729463786570,6.98561419,165.13,165.05,24.2341]
[1729463786571,6.98561419,165.13,165.11,12.1131]
[1729463786752,6.98561419,165.13,165.11,16.65159493]
[1729463787647,6.98561419,165.13,165.11,12.1131]
[1729463788475,6.0771,165.13,165.1,4.8453]
[1729463788669,6.98561215,165.13,165.1,4.8453]
[1729463789170,6.98561215,165.13,165.1,9.38794936]
[1729463791894,6.0771,165.13,165.1,9.38794936]
[1729463792373,6.98561215,165.13,165.11,4.8452]
[1729463792587,6.98561215,165.13,165.1,9.38814936]
[1729463793279,6.98561215,165.13,165.11,2.88088285]
[1729463795303,6.98561215,165.13,165.09,4.54264936]
[1729463795304,4.8449,165.12,165.09,4.54264936]
[1729463795467,4.8455,165.11,165.1,2.88235447]
[1729463795669,0.90868576,165.09,165.03,12.1188]
[1729463795869,5.75448576,165.09,165.04,7.73050049]
[1729463796084,0.90868576,165.09,165.08,4.54464458]
[1729463796270,0.90868576,165.09,165.05,9.39154458]
[1729463796469,0.90868576,165.09,165.06,7.42896459]
[1729463796709,0.90868576,165.09,165.07,2.88432001]
[1729463796897,5.75458576,165.09,165.07,2.88432001]
[1729463797088,5.75458576,165.09,165.05,4.54464458]
[1729463797396,0.90868576,165.09,165.06,2.8848027]
[1729463798694,5.75458576,165.09,165.06,2.8848027]
[1729463798898,5.75458576,165.09,165.07,2.8848027]
[1729463799073,5.75458576,165.09,165.04,16.9652]
[1729463799394,0.90868576,165.09,165.05,7.73259208]
[1729463799594,0.90868576,165.09,165.08,4.8461]
[1729463799802,12.92221863,165.2,165.08,2.88579208]
[1729463799993,4.8435,165.17,165.12,4.8448]
[1729463800370,6.7982,165.2,165.13,14.99719208]
[1729463800371,7.50648128,165.2,165.13,14.99719208]
[1729463800568,4.8431,165.19,165.14,2.88579208]
[1729463801584,7.50648128,165.2,165.14,2.88579208]
[1729463801585,7.50648128,165.2,165.14,14.99649208]
[1729463801899,12.34918128,165.2,165.15,2.88579208]
[1729463802775,23.776884,165.19,165.15,2.88579208]
[1729463803869,0.90828128,165.2,165.16,4.8434]
[1729463804074,0.90828128,165.2,165.15,12.1101]
[1729463804295,0.90828128,165.2,165.16,2.88023238]
[1729463805084,6.1771,165.24,165.16,2.88023238]
[1729463805394,4.8402,165.29,165.18,4.8432]
[1729463805703,6.1771,165.3,165.19,2.88023238]
[1729463805878,11.92481478,165.3,165.2,2.88023238]
[1729463806080,7.08491478,165.3,165.25,4.8409]
[1729463806898,7.08491478,165.3,165.26,2.87242765]
[1729463807698,7.08491478,165.3,165.25,4.8409]
[1729463808188,7.08491478,165.3,165.19,1.21013078]
[1729463808189,4.8379,165.36,165.3,4.8394]
[1729463808393,6.2771,165.39,165.28,4.84]
[1729463808394,4.8376,165.37,165.28,4.84]
[1729463808592,4.8384,165.35,165.23,5.71378931]
[1729463808789,4.8384,165.35,165.29,4.8398]
[1729463809309,4.8373,165.38,165.25,20.0]
[1729463809609,5.74468201,165.38,165.32,4.839]
[1729463810199,5.74468201,165.38,165.27,4.4941518]
[1729463810200,0.90738201,165.38,165.28,1.20959573]
[1729463810397,0.90738201,165.38,165.33,4.8385]
[1729463810702,0.90738201,165.38,165.34,4.8383]
[1729463810903,4.835,165.46,165.38,4.8372]
[1729463811212,0.1,165.47,165.38,4.8372]
[1729463812112,4.8355,165.45,165.38,4.8372]
[1729463812405,23.776884,165.44,165.38,4.8372]
[1729463812810,28.612484,165.44,165.38,4.8372]
[1729463813011,24.68395794,165.44,165.36,12.0948]
[1729463813184,4.8359,165.43,165.36,12.0948]
[1729463813808,24.88395794,165.44,165.31,23.776884]
[1729463814011,24.88395794,165.44,165.32,16.9363]
[1729463814012,4.8372,165.39,165.32,16.9363]
[1729463814304,4.8372,165.39,165.32,12.0975]
[1729463814508,15.4135,165.4,165.35,4.8382]
[1729463814697,16.32079725,165.4,165.3,24.1984]
[1729463814884,16.32079725,165.4,165.34,16.9342]
[1729463815090,21.15779725,165.4,165.34,16.9342]
[1729463815294,21.15779725,165.4,165.34,16.9345]
[1729463815899,23.776884,165.39,165.34,12.096]
[1729463816194,23.776884,165.39,165.35,4.838]
[1729463816388,23.776884,165.39,165.34,12.096]
[1729463816596,23.776884,165.37,165.31,4.8393]
[1729463816815,29.959984,165.39,165.26,4.8408]
[1729463817016,0.1,165.38,165.28,4.8399]
[1729463817193,0.1,165.37,165.28,4.8399]
[1729463817518,23.776884,165.34,165.29,4.8399]
[1729463817718,0.90739889,165.34,165.3,4.8395]
[1729463819227,0.90739889,165.34,165.25,43.776884]
[1729463819407,0.90739889,165.34,165.26,24.2042]
[1729463819591,0.90739889,165.34,165.32,4.839]
[1729463819794,0.90729725,165.4,165.33,1.20964912]
[1729463820013,0.90729725,165.4,165.39,4.837]
[1729463820917,0.90729725,165.4,165.38,16.9304]
[1729463821495,0.90729725,165.4,165.38,12.0931]
[1729463822430,0.90729725,165.4,165.36,4.8376]
[1729463822721,0.90729725,165.4,165.32,4.8389]
[1729463822722,10.8591,165.38,165.32,4.8389]
[1729463822920,10.8591,165.38,165.33,4.8387]
[1729463823230,10.8591,165.38,165.26,20.0]
[1729463823231,6.0218,165.38,165.26,20.1]
[1729463823407,23.776884,165.37,165.31,4.8391]
[1729463823715,24.68424021,165.37,165.2,13.4884]
[1729463823924,24.68424021,165.37,165.29,4.8397]
[1729463824100,4.8383,165.35,165.29,4.8397]
[1729463824723,24.68424021,165.37,165.23,0.1]
[1729463824724,0.90735621,165.37,165.23,0.1]
[1729463824920,5.74515621,165.37,165.31,4.8393]
[1729463825119,0.90735621,165.37,165.31,4.8393]
[1729463825320,4.8384,165.35,165.29,16.939]
[1729463826999,4.8388,165.33,165.26,4.8405]
[1729463827323,23.776884,165.36,165.22,24.2101]
[1729463827514,23.776884,165.33,165.28,4.8402]
[1729463827715,24.68434221,165.33,165.28,4.8402]
[1729463828107,24.68434221,165.33,165.24,20.0]
[1729463828108,0.90745821,165.33,165.24,20.0]
[1729463828515,0.90745821,165.33,165.25,4.8411]
[1729463828706,0.90745821,165.33,165.24,23.776884]
[1729463829325,0.90745821,165.33,165.3,4.8396]
[1729463830031,0.90745821,165.33,165.32,4.839]
[1729463830524,0.90745821,165.33,165.31,12.0981]
[1729463830707,4.8379,165.36,165.31,12.0981]
[1729463830910,0.90735621,165.37,165.31,12.0981]
[1729463831119,4.8379,165.36,165.29,4.8399]
[1729463831425,4.8379,165.36,165.27,12.1008]
[1729463831426,23.776884,165.36,165.27,12.1008]
[1729463831627,5.74646305,165.33,165.27,16.9413]
[1729463831831,0.90746305,165.33,165.22,24.2101]
[1729463832131,4.8405,165.28,165.23,4.8417]
[1729463832813,24.68462377,165.28,165.21,4.8421]
[1729463833016,4.8405,165.27,165.21,4.8421]
[1729463833216,24.68462377,165.28,165.2,12.1058]
[1729463833410,24.68462377,165.28,165.12,13.4884]
[1729463833411,4.8414,165.24,165.12,13.4884]
[1729463833619,4.8414,165.24,165.18,4.8431]
[1729463833916,23.776884,165.22,165.08,18.42480187]
[1729463834107,23.776884,165.22,165.14,4.8443]
[1729463834108,26.1237,165.21,165.14,4.8443]
[1729463834307,22.18953655,165.21,165.09,4.45580518]
[1729463834506,4.8434,165.18,165.11,4.8452]
[1729463834713,4.8429,165.19,165.12,4.8447]
[1729463834922,28.620284,165.18,165.11,4.8451]
[1729463835328,28.620284,165.18,165.12,4.8448]
[1729463836330,22.18953655,165.21,165.12,20.0]
[1729463836522,22.18953655,165.21,165.14,12.1109]
[1729463836828,22.18953655,165.21,165.17,4.8434]
[1729463837031,22.18953655,165.21,165.15,12.1102]
[1729463837535,22.18953655,165.21,165.16,4.8437]
[1729463837706,22.18953655,165.21,165.17,4.8433]
[1729463838426,7.10833655,165.21,165.12,20.0]
[1729463838631,7.10833655,165.21,165.19,4.8428]
[1729463839218,7.10833655,165.21,165.06,4.8467]
[1729463839219,4.8441,165.15,165.06,4.8467]
[1729463839404,4.8447,165.13,165.05,4.8469]
[1729463839604,10.07621612,165.15,165.03,6.32233817]
[1729463839837,0.1,165.19,165.04,7.30690991]
[1729463839838,4.8432,165.18,165.04,7.30690991]
[1729463840042,28.620384,165.17,165.05,4.847]
[1729463840330,28.620384,165.17,165.01,4.56565192]
[1729463840331,23.776884,165.16,165.01,4.66565192]
[1729463840708,23.776884,165.16,165.03,24.238]
[1729463841112,23.776884,165.12,165.06,12.1165]
[1729463841314,24.6855193,165.12,165.06,12.1165]
[1729463841514,4.8455,165.11,165.04,4.46838323]
[1729463841721,30.7839193,165.12,165.02,4.8477]
[1729463842323,15.1072,165.11,165.02,4.8477]
[1729463842522,23.776884,165.09,165.02,4.8477]
[1729463843041,4.8455,165.1,164.97,13.4884]
[1729463843221,4.8455,165.1,165.03,4.8473]
[1729463844015,5.75445046,165.1,165.02,12.1194]
[1729463844216,5.75445046,165.1,165.03,16.9664]
[1729463845634,4.8462,165.08,164.95,0.1]
[1729463845817,4.8462,165.08,165.02,4.8478]
[1729463846639,4.8468,165.06,165.0,16.9695]
[1729463846843,5.75579577,165.06,165.0,16.9695]
[1729463847733,0.90899577,165.06,164.97,4.8491]
[1729463848116,0.90899577,165.06,164.96,12.1237]
[1729463848318,0.90899577,165.06,164.97,4.8493]
[1729463848319,11.2806,165.03,164.97,4.8493]
[1729463849645,7.34228702,165.03,164.96,12.1237]
[1729463849834,4.8487,164.99,164.92,16.9772]
[1729463850540,4.8487,164.99,164.92,12.1266]
[1729463850927,0.90923121,164.99,164.97,4.8492]
[1729463851245,0.90923121,164.99,164.95,12.1245]
[1729463851246,0.90923121,164.99,164.96,4.8496]
[1729463852124,0.90923121,164.99,164.95,16.9742]
[1729463852330,0.90923121,164.99,164.95,12.1245]
[1729463852535,0.90923121,164.99,164.98,5.4612939]
[1729463852845,0.90928702,165.03,164.98,0.6122939]
[1729463853047,0.90928702,165.03,165.01,4.848]
[1729463853452,0.90928702,165.03,165.02,4.8478]
[1729463854159,6.3653,165.07,165.03,4.8475]
[1729463855043,27.7389,165.11,165.05,4.8469]
[1729463855228,0.90885415,165.07,165.04,4.8472]
[1729463855424,0.90885415,165.07,165.02,12.1197]
[1729463858049,0.90885415,165.07,165.02,16.9674]
[1729463859143,6.3653,165.11,165.06,4.8466]
[1729463859547,16.1174,165.15,165.02,1.31145159]
[1729463859732,0.90859752,165.11,165.05,23.776884]
[1729463859929,0.90859752,165.11,165.09,4.8457]
[1729463860141,0.90859752,165.11,165.05,23.776884]
[1729463860142,0.90859752,165.11,165.07,16.9621]
[1729463860523,0.90859752,165.11,165.1,4.8455]
[1729463860942,0.90859752,165.11,165.08,12.1153]
[1729463861144,0.90859752,165.11,165.05,23.776884]
[1729463861145,0.90859752,165.11,165.06,4.8465]
[1729463861329,0.90859752,165.11,165.05,12.1172]
[1729463861330,5.75399752,165.11,165.05,12.1172]
[1729463861534,5.75399752,165.11,165.05,16.964]
[1729463862340,5.75399752,165.11,165.03,4.8475]
[1729463862341,4.8458,165.1,165.03,4.8475]
[1729463862927,0.90859752,165.11,165.0,4.8483]
[1729463863140,4.8458,165.09,165.0,12.1207]
[1729463863340,30.029384,165.1,165.0,16.9691]
[1729463863525,4.8466,165.07,165.0,16.9691]
[1729463863728,4.8467,165.06,165.0,16.9691]
[1729463864659,4.8467,165.06,165.01,4.8481]
[1729463865434,4.8467,165.06,165.0,12.1207]
[1729463865641,4.8467,165.06,165.0,16.969]
[1729463867030,0.90899813,165.07,164.98,0.6122939]
[1729463867252,0.90899813,165.07,165.01,12.1198]
[1729463867539,4.8467,165.06,165.01,16.9677]
[1729463870859,5.75539813,165.07,165.01,16.9677]
[1729463871036,0.90899813,165.07,165.01,23.776884]
[1729463871230,0.90899813,165.07,165.04,4.8473]
[1729463871462,0.90899813,165.07,165.03,4.8475]
[1729463872157,0.90899813,165.07,164.99,23.776884]
[1729463872333,4.8468,165.06,165.0,4.8484]
[1729463872533,4.8468,165.06,165.01,4.8481]
[1729463873052,21.0733,165.06,165.01,4.8481]
[1729463873758,16.2265,165.06,165.02,4.8478]
[1729463876448,16.2265,165.06,165.02,9.33144377]
[1729463876648,16.2265,165.06,165.02,4.8478]
[1729463878253,16.2265,165.06,165.03,4.48364377]
[1729463878444,0.90899813,165.07,165.04,4.8472]
[1729463878647,0.90899813,165.07,165.04,9.33084377]
[1729463879542,0.90899813,165.07,165.05,4.48364377]
[1729463880360,0.90899813,165.07,165.06,4.48364377]
[1729463880575,0.90859752,165.11,165.06,24.48364377]
[1729463880742,0.90859752,165.11,165.1,48.622384]
[1729463880950,6.2633,165.25,165.13,4.8446]
[1729463881263,6.31093213,165.21,165.17,4.8433]
[1729463881437,6.2633,165.25,165.15,16.59384377]
[1729463881641,11.1045,165.25,165.15,16.9542]
[1729463881852,11.1045,165.25,165.16,9.32724377]
[1729463881853,6.2633,165.25,165.16,9.32724377]
[1729463882769,6.2633,165.25,165.17,4.8433]
[1729463883549,6.2633,165.25,165.14,23.776884]
[1729463883753,6.2633,165.25,165.16,23.776884]
[1729463883955,6.2633,165.25,165.17,4.48364377]
[1729463884167,6.2633,165.25,165.18,23.776884]
[1729463884452,6.1375,165.29,165.22,4.8417]
[1729463885751,6.1375,165.29,165.25,4.841]
[1729463885949,6.1375,165.29,165.25,4.8408]
[1729463886154,6.1375,165.29,165.23,4.8414]
[1729463886853,6.1375,165.29,165.22,16.9467]
[1729463887171,4.8402,165.28,165.22,12.105]
[1729463888169,4.8402,165.28,165.22,16.947]
[1729463889651,4.8402,165.28,165.22,12.105]
[1729463890567,0.90783733,165.28,165.22,12.105]
[1729463890876,0.90783733,165.28,165.18,16.9502]
[1729463891166,0.9080444,165.25,165.18,12.1073]
[1729463891371,4.8414,165.24,165.18,12.1073]
[1729463891575,4.8424,165.21,165.1,41.187]
[1729463891878,6.1897,165.2,165.11,2.7954406]
[1729463892053,11.0323,165.2,165.13,16.9559]
[1729463892256,11.0323,165.2,165.14,4.8443]
[1729463892457,4.843,165.19,165.13,12.1115]
[1729463892762,7.09796713,165.2,165.13,12.1115]
[1729463893367,4.8429,165.19,165.13,12.1115]
[1729463893672,7.09796713,165.2,165.14,4.8441]
[1729463893872,7.09796713,165.2,165.16,4.8437]
[1729463897158,7.09796713,165.2,165.15,12.1099]
[1729463897363,7.09796713,165.2,165.15,16.9538]
[1729463898449,7.09796713,165.2,165.07,24.4314]
[1729463898450,7.09796713,165.2,165.07,24.2314]
[1729463898650,4.8432,165.18,165.12,4.8449]
[1729463899969,4.8432,165.18,165.11,4.8449]
[1729463901276,11.94066713,165.2,165.14,4.8443]
[1729463902083,11.94066713,165.2,165.09,4.48757793]
[1729463902084,7.09796713,165.2,165.16,4.8435]
[1729463902472,7.09796713,165.2,165.13,4.8445]
[1729463902473,4.8431,165.19,165.13,4.8445]
[1729463902666,11.94056713,165.2,165.13,4.8445]
[1729463902895,11.94056713,165.2,165.14,4.8443]
[1729463903469,7.09796713,165.2,165.15,4.844]
[1729463903861,7.09796713,165.2,165.13,12.1116]
[1729463904072,4.8429,165.19,165.13,16.9561]
[1729463904365,7.09796713,165.2,165.11,24.2262]
[1729463904584,0.90826713,165.2,165.19,4.8429]
[1729463905181,0.90826713,165.2,165.12,23.776884]
[1729463905377,0.90826713,165.2,165.15,4.8438]
[1729463905678,0.90826713,165.2,165.16,4.8436]
[1729463906479,0.90826713,165.2,165.15,12.11]
[1729463906679,0.90826713,165.2,165.17,4.8434]
[1729463907960,0.90826713,165.2,165.15,12.11]
[1729463909489,0.90826713,165.2,165.16,4.8436]
[1729463910473,0.90826713,165.2,165.15,16.954]
[1729463910873,5.75086713,165.2,165.15,12.11]
[1729463911661,0.90826713,165.2,165.19,4.8429]
[1729463911867,0.9080444,165.25,165.18,23.776884]
[1729463912079,0.9080444,165.25,165.19,16.95]
[1729463912263,4.8417,165.24,165.17,4.8433]
[1729463912464,6.0202,165.24,165.13,23.776884]
[1729463912663,6.0202,165.24,165.16,12.1093]
[1729463912985,4.8425,165.21,165.14,4.8443]
[1729463913176,20.0,165.23,165.14,4.8443]
[1729463913384,20.0,165.23,165.11,36.8059]
[1729463913385,4.8426,165.2,165.13,16.956]
[1729463914088,4.8426,165.2,165.13,12.1116]
[1729463914286,4.8422,165.22,165.15,4.844]
[1729463914588,24.8417,165.23,165.12,23.776884]
[1729463914789,24.8417,165.23,165.14,23.776884]
[1729463915100,6.0202,165.24,165.17,12.108]
[1729463915388,6.0202,165.24,165.18,4.8432]
[1729463915984,10.8617,165.24,165.18,4.8432]
[1729463916285,10.8617,165.24,165.17,12.108]
[1729463916286,24.8417,165.23,165.17,12.108]
[1729463916492,4.8422,165.22,165.16,4.8435]
[1729463916865,4.8422,165.22,165.14,23.776884]
[1729463917066,4.8422,165.22,165.14,4.8443]
[1729463917067,4.8426,165.2,165.14,4.8443]
[1729463917271,24.8423,165.21,165.14,4.8443]
[1729463917488,20.0,165.21,165.16,4.8436]
[1729463917668,20.90818869,165.22,165.16,4.8436]
[1729463917877,25.75028869,165.22,165.16,4.8436]
[1729463920196,0.90818869,165.22,165.21,4.8423]
[1729463920503,6.32039725,165.27,165.23,4.8416]
[1729463920504,0.9080444,165.25,165.23,4.8416]
[1729463920671,0.9080444,165.25,165.22,4.8419]
[1729463921499,0.9080444,165.25,165.21,16.9479]
[1729463921897,11.16099725,165.27,165.21,16.9479]
[1729463922798,12.06882618,165.27,165.21,16.9479]
[1729463924277,4.8409,165.26,165.21,12.1057]
[1729463924688,7.22822618,165.27,165.2,23.776884]
[1729463925000,5.74964186,165.23,165.18,4.8431]
[1729463925408,4.8417,165.23,165.18,4.8431]
[1729463926206,0.90794186,165.23,165.18,28.619784]
[1729463926690,0.90794186,165.23,165.18,23.776884]
[1729463927203,20.0,165.22,165.14,12.1108]
[1729463927394,5.75094509,165.2,165.14,16.9551]
[1729463927702,5.75094509,165.2,165.14,21.48896356]
[1729463927908,5.75094509,165.2,165.15,4.53386356]
[1729463928281,0.90814509,165.2,165.16,4.8435]
[1729463928481,0.90814509,165.2,165.12,9.04793089]
[1729463928701,0.90814509,165.2,165.16,4.8436]
[1729463929177,0.90814509,165.2,165.17,12.5797]
[1729463929382,6.32039725,165.27,165.19,20.0]
[1729463929693,6.32039725,165.27,165.24,4.8413]